bitfinex/quotes_SOLUSD_20240814
["timestamp","ask_amount","ask_price","bid_price","bid_amount"]
[1723611505892,19.7038,144.85,144.81,6.9055]
[1723611509397,19.7038,144.85,144.8,6.9059]
[1723611510806,6.9044,144.84,144.8,6.9059]
[1723611512208,19.7038,144.85,144.81,6.9055]
[1723611513005,6.9043,144.84,144.8,6.906]
[1723611516396,8.63061044,144.84,144.8,6.906]
[1723611516711,8.63061044,144.84,144.76,29.2723]
[1723611517612,6.9046,144.83,144.76,29.2723]
[1723611519028,6.9046,144.83,144.79,6.9062]
[1723611520523,8.63157378,144.82,144.78,6.9068]
[1723611520680,1.72647378,144.82,144.76,23.3799]
[1723611520884,7.03059,144.82,144.78,6.9069]
[1723611522128,0.12549,144.82,144.77,6.9073]
[1723611522323,6.9056,144.81,144.77,6.9073]
[1723611522820,7.03069,144.82,144.78,6.907]
[1723611525411,7.03159,144.8,144.75,6.908]
[1723611525785,6.9066,144.79,144.75,6.908]
[1723611526202,0.12549,144.8,144.74,6.9087]
[1723611526810,6.9066,144.79,144.75,6.9083]
[1723611527130,7.03189,144.8,144.75,6.9083]
[1723611528233,7.03189,144.8,144.76,6.9079]
[1723611528731,7.03189,144.8,144.75,6.9083]
[1723611528732,6.9065,144.79,144.75,6.9083]
[1723611529609,6.9065,144.79,144.72,16.4789]
[1723611529610,12.8,144.79,144.72,16.4789]
[1723611529904,14.52713973,144.79,144.72,6.9095]
[1723611530430,6.9076,144.77,144.73,6.9093]
[1723611531431,6.9071,144.78,144.74,6.9088]
[1723611531735,7.03219,144.79,144.74,6.9088]
[1723611532144,7.15708,144.8,144.71,0.8247433]
[1723611532310,7.03159,144.8,144.71,20.8247433]
[1723611532639,7.03159,144.8,144.72,12.8]
[1723611532944,7.03159,144.8,144.75,6.9083]
[1723611533108,7.03159,144.8,144.76,6.9079]
[1723611533309,6.9057,144.81,144.76,6.9079]
[1723611533526,6.9062,144.8,144.76,6.9079]
[1723611536150,6.9056,144.81,144.77,6.9073]
[1723611537021,6.9062,144.8,144.75,6.9081]
[1723611537321,6.9062,144.8,144.76,6.9079]
[1723611538323,6.9069,144.79,144.73,15.2071]
[1723611538743,12.8,144.81,144.73,28.0071]
[1723611538744,19.7056,144.81,144.73,28.0071]
[1723611539022,7.03069,144.82,144.77,6.907]
[1723611539230,7.03069,144.82,144.78,6.907]
[1723611539836,7.03069,144.82,144.77,6.9074]
[1723611540326,6.9056,144.81,144.77,6.9074]
[1723611540526,6.9061,144.8,144.76,6.9079]
[1723611541062,6.9057,144.81,144.76,6.9079]
[1723611541935,6.9062,144.8,144.76,6.9079]
[1723611542753,6.9057,144.81,144.77,6.9072]
[1723611543627,6.9057,144.81,144.76,6.9078]
[1723611546068,27.27073642,144.85,144.78,6.9067]
[1723611546367,27.27073642,144.85,144.77,6.9074]
[1723611546368,6.9055,144.82,144.77,6.9074]
[1723611546663,12.8,144.82,144.73,28.0071]
[1723611547052,6.9057,144.81,144.73,28.0071]
[1723611547351,6.9057,144.81,144.77,6.9071]
[1723611547543,8.63243173,144.81,144.76,6.9078]
[1723611547950,6.9057,144.81,144.76,6.9078]
[1723611548155,6.9057,144.81,144.77,6.9074]
[1723611548839,6.9043,144.84,144.8,6.9057]
[1723611549171,6.9054,144.82,144.78,6.9068]
[1723611549342,6.9054,144.82,144.74,12.8]
[1723611549540,6.9056,144.81,144.77,6.9073]
[1723611549735,6.9051,144.82,144.78,6.9068]
[1723611551569,6.9051,144.82,144.77,6.9073]
[1723611551734,6.9051,144.82,144.78,6.9068]
[1723611552136,12.8,144.84,144.79,6.9064]
[1723611552358,6.9047,144.83,144.79,6.9064]
[1723611553868,12.8,144.84,144.74,12.8]
[1723611554076,47.22865318,144.83,144.74,12.8]
[1723611554247,1.72669583,144.82,144.74,12.8]
[1723611554433,6.9057,144.81,144.76,6.9078]
[1723611555571,6.9057,144.81,144.77,6.9074]
[1723611556877,1.72672777,144.8,144.77,6.9074]
[1723611557249,19.7052,144.82,144.78,6.9068]
[1723611557772,6.9052,144.82,144.78,6.9068]
[1723611559252,6.9052,144.82,144.74,12.8]
[1723611559253,0.12549,144.83,144.79,6.9062]
[1723611560085,19.7044,144.84,144.79,6.9062]
[1723611563669,6.9048,144.83,144.79,6.9062]
[1723611563867,6.9048,144.83,144.78,6.9069]
[1723611564560,6.9052,144.82,144.78,6.9069]
[1723611564972,6.9052,144.82,144.77,6.9073]
[1723611565494,10.45189924,144.87,144.8,6.9056]
[1723611565790,12.8,144.84,144.79,6.9062]
[1723611565985,1.72638402,144.83,144.79,6.9062]
[1723611566161,12.8,144.84,144.79,6.9062]
[1723611566359,19.7042,144.84,144.8,6.906]
[1723611567104,6.9037,144.85,144.81,6.9055]
[1723611567693,6.9043,144.84,144.8,6.9059]
[1723611569966,6.9047,144.83,144.77,22.3889]
[1723611571794,6.9047,144.83,144.79,6.9064]
[1723611572876,7.02979,144.84,144.8,6.9059]
[1723611575286,12.8,144.85,144.77,22.3889]
[1723611575287,19.7038,144.85,144.81,6.9054]
[1723611576607,12.8,144.85,144.81,6.9054]
[1723611578273,19.7037,144.85,144.81,6.9054]
[1723611578703,6.9037,144.85,144.81,6.9054]
[1723611578905,7.02879,144.86,144.82,6.9049]
[1723611579209,6.9037,144.85,144.81,6.9055]
[1723611581199,6.9037,144.85,144.8,6.9059]
[1723611581705,6.9042,144.84,144.8,6.9059]
[1723611582303,8.63047136,144.84,144.8,6.9059]
[1723611582488,6.9042,144.84,144.8,6.9059]
[1723611582806,19.704,144.85,144.81,6.9055]
[1723611583284,0.12549,144.87,144.79,12.8]
[1723611583488,27.02849,144.87,144.83,6.9046]
[1723611584004,6.9032,144.86,144.81,6.9052]
[1723611584417,6.9032,144.86,144.82,6.9049]
[1723611587525,12.92549,144.87,144.78,12.8]
[1723611587526,19.7028,144.87,144.83,6.9046]
[1723611588109,19.7028,144.87,144.82,6.9049]
[1723611588611,6.9044,144.84,144.8,6.9057]
[1723611588807,12.8,144.87,144.79,6.9064]
[1723611588808,12.8,144.85,144.79,6.9064]
[1723611589000,6.9047,144.83,144.79,6.9064]
[1723611589428,6.9043,144.84,144.8,6.9059]
[1723611590134,19.7038,144.85,144.8,6.9059]
[1723611590315,19.7038,144.85,144.81,6.9055]
[1723611591624,6.9038,144.85,144.81,6.9055]
[1723611594625,12.8,144.87,144.79,12.8]
[1723611594823,6.9028,144.87,144.83,6.9045]
[1723611597555,7.02789,144.88,144.83,6.9045]
[1723611597752,6.9024,144.88,144.84,6.904]
[1723611598753,6.9029,144.87,144.83,6.9044]
[1723611600548,6.9029,144.87,144.82,6.9049]
[1723611601049,6.9043,144.84,144.81,15.5996]
[1723611601253,6.9038,144.85,144.8,6.9056]
[1723611601565,6.9028,144.87,144.82,6.9047]
[1723611601853,6.9028,144.87,144.83,6.9045]
[1723611603552,12.8,144.87,144.78,15.5996]
[1723611603744,6.9044,144.84,144.78,15.5996]
[1723611604158,6.9042,144.84,144.8,6.906]
[1723611604358,1.72631864,144.83,144.78,15.5996]
[1723611604562,12.8,144.83,144.78,15.5996]
[1723611604737,1.97746239,144.82,144.78,15.5996]
[1723611604936,6.9057,144.81,144.78,15.5996]
[1723611605534,1.72673472,144.8,144.78,15.5996]
[1723611605961,1.72673472,144.8,144.76,6.9076]
[1723611606258,6.9057,144.81,144.77,6.9073]
[1723611606468,6.906,144.8,144.75,22.0839]
[1723611606662,1.72673445,144.79,144.75,22.0839]
[1723611606964,1.72673445,144.79,144.76,6.9079]
[1723611607761,1.72678503,144.8,144.76,6.9079]
[1723611609474,1.72678503,144.8,144.77,6.9073]
[1723611609842,12.8,144.81,144.77,6.9073]
[1723611610174,1.72678347,144.8,144.77,6.9073]
[1723611610569,12.8,144.81,144.77,6.9073]
[1723611610936,1.72679596,144.8,144.77,6.9073]
[1723611611253,12.8,144.81,144.77,6.9073]
[1723611611254,1.72681368,144.79,144.77,6.9073]
[1723611611943,1.72681368,144.79,144.76,6.9079]
[1723611612294,7.03069,144.82,144.75,15.176]
[1723611612465,0.12549,144.82,144.75,15.176]
[1723611613147,7.15618,144.82,144.78,6.9068]
[1723611613346,0.12549,144.81,144.77,6.9073]
[1723611613648,7.15618,144.82,144.78,6.9069]
[1723611615361,0.25098,144.82,144.78,6.9069]
[1723611615567,0.12549,144.82,144.78,6.9069]
[1723611616959,7.03069,144.82,144.75,15.176]
[1723611617156,7.03069,144.82,144.77,6.9074]
[1723611617358,8.63236528,144.81,144.77,6.9074]
[1723611617551,8.63236528,144.81,144.76,6.9079]
[1723611617752,7.15718,144.8,144.75,22.0844]
[1723611618189,0.12549,144.79,144.75,6.9084]
[1723611618360,8.75918687,144.79,144.75,6.9084]
[1723611618760,45.25098,144.78,144.74,6.9088]
[1723611619167,0.12549,144.79,144.75,6.9084]
[1723611619359,19.7059,144.81,144.75,6.9084]
[1723611619360,52.40806,144.8,144.75,6.9084]
[1723611619791,6.9066,144.79,144.75,6.9084]
[1723611619962,0.12549,144.78,144.75,6.9084]
[1723611620160,7.15798,144.78,144.74,6.9088]
[1723611620355,6.9075,144.77,144.71,16.7297433]
[1723611620584,6.9075,144.77,144.73,6.9093]
[1723611621074,0.12549,144.76,144.71,16.7297433]
[1723611621273,0.12549,144.77,144.74,6.9088]
[1723611621482,45.50196,144.77,144.74,6.9088]
[1723611621788,0.50196,144.77,144.74,6.9088]
[1723611622789,0.50196,144.77,144.73,6.9093]
[1723611624074,7.40946,144.77,144.73,6.9093]
[1723611624283,20.20946,144.77,144.72,6.9098]
[1723611626297,53.63546257,144.76,144.72,6.9098]
[1723611626495,0.25098,144.75,144.71,7.7350433]
[1723611627762,0.25098,144.75,144.72,6.9098]
[1723611633989,0.25098,144.75,144.71,0.8247433]
[1723611633990,21.68691348,144.75,144.71,0.8247433]
[1723611634384,0.12549,144.73,144.71,0.8247433]
[1723611634601,1.8532815,144.73,144.71,0.8247433]
[1723611635018,0.12549,144.73,144.71,0.8247433]
[1723611635602,0.25098,144.73,144.71,0.8247433]
[1723611636215,1.97876229,144.73,144.71,0.8247433]
[1723611636710,45.25098,144.74,144.71,7.7348433]
[1723611636904,45.12549,144.75,144.71,7.7348433]
[1723611637083,52.03399,144.75,144.71,7.7348433]
[1723611638098,52.03399,144.75,144.71,0.8247433]
[1723611638704,1.72762029,144.74,144.71,7.7348433]
[1723611638900,1.72762029,144.74,144.71,0.8247433]
[1723611639413,1.72762029,144.74,144.71,7.7349433]
[1723611639614,0.12549,144.75,144.71,7.7349433]
[1723611639794,0.37647,144.75,144.71,7.7349433]
[1723611640119,7.28497,144.75,144.71,0.8247433]
[1723611640307,1.72763823,144.74,144.71,0.8247433]
[1723611640510,1.72765005,144.73,144.71,0.8247433]
[1723611640816,7.28497,144.75,144.71,0.8247433]
[1723611641019,0.37647,144.75,144.71,7.7350433]
[1723611641316,14.6301,144.77,144.71,0.8247433]
[1723611641487,18.9175,144.79,144.73,6.9089]
[1723611642329,6.9074,144.78,144.73,6.9089]
[1723611642922,1.85279855,144.77,144.73,6.9089]
[1723611643293,8.76029855,144.77,144.73,6.9089]
[1723611643491,6.908,144.76,144.72,6.9097]
[1723611644231,8.6358829,144.75,144.71,7.7349433]
[1723611644520,0.12549,144.74,144.71,0.8247433]
[1723611644720,0.37647,144.74,144.71,0.8247433]
[1723611645631,45.0,144.75,144.71,7.7349433]
[1723611645922,6.908,144.76,144.71,7.7349433]
[1723611646822,6.908,144.76,144.72,6.9097]
[1723611647031,0.12549,144.76,144.72,6.9097]
[1723611647329,45.50196,144.76,144.72,6.9097]
[1723611647931,2.77217879,144.8,144.71,0.8247433]
[1723611648236,7.7226,144.81,144.72,29.1763]
[1723611648417,6.9062,144.8,144.75,6.908]
[1723611649338,0.12549,144.79,144.75,6.908]
[1723611650234,6.9056,144.81,144.76,6.9078]
[1723611650422,0.37647,144.8,144.76,6.9078]
[1723611650612,19.7052,144.82,144.77,6.9074]
[1723611650815,0.12549,144.81,144.77,6.9074]
[1723611651329,6.9056,144.81,144.77,6.9074]
[1723611652133,14.65236982,144.8,144.73,6.9093]
[1723611652428,0.12549,144.78,144.75,6.9084]
[1723611654422,0.12549,144.78,144.74,6.9088]
[1723611655046,1.85270595,144.78,144.74,6.9088]
[1723611655735,0.12549,144.78,144.74,6.9088]
[1723611655927,0.25098,144.78,144.74,6.9088]
[1723611660437,0.25098,144.78,144.75,6.9083]
[1723611661230,0.25098,144.78,144.74,6.9088]
[1723611661435,7.15808,144.78,144.73,6.9093]
[1723611661644,0.12549,144.77,144.73,6.9093]
[1723611662016,0.25098,144.77,144.73,6.9093]
[1723611665654,0.12549,144.78,144.72,16.3763]
[1723611665848,0.37647,144.78,144.72,16.3763]
[1723611667157,0.37647,144.78,144.72,17.75805777]
[1723611667330,45.0,144.79,144.75,6.9084]
[1723611667654,0.25098,144.78,144.74,6.9089]
[1723611670850,7.15808,144.78,144.74,6.9089]
[1723611671050,6.9075,144.77,144.72,23.2857]
[1723611671256,7.15798,144.78,144.72,16.3763]
[1723611672275,7.03299,144.77,144.72,16.3763]
[1723611672568,7.03299,144.77,144.73,6.909]
[1723611672949,0.12549,144.77,144.73,6.909]
[1723611673150,7.15808,144.78,144.73,6.909]
[1723611674269,2.73827188,144.81,144.72,16.3763]
[1723611674564,6.9056,144.81,144.76,6.9078]
[1723611675372,6.9061,144.8,144.75,6.9084]
[1723611679759,7.03199,144.79,144.72,16.3763]
[1723611679961,6.907,144.78,144.73,6.9089]
[1723611680274,8.76047281,144.77,144.72,23.2861]
[1723611680593,8.76047281,144.77,144.73,6.9093]
[1723611680764,0.12549,144.78,144.74,6.9088]
[1723611680969,0.12549,144.79,144.72,17.7580392]
[1723611681180,0.12549,144.79,144.76,6.9079]
[1723611681382,0.12549,144.79,144.72,29.1763]
[1723611681694,7.15708,144.8,144.75,6.908]
[1723611683489,0.12549,144.78,144.74,6.9088]
[1723611683663,7.03249,144.78,144.74,6.9088]
[1723611683865,6.9075,144.77,144.72,16.3763]
[1723611686169,6.9075,144.77,144.73,6.9093]
[1723611686806,0.12549,144.76,144.73,6.9093]
[1723611687974,0.12549,144.77,144.73,6.9093]
[1723611688184,52.28427,144.77,144.72,23.2861]
[1723611688701,45.37647,144.77,144.73,6.9093]
[1723611689495,52.28397,144.77,144.73,6.9093]
[1723611689701,6.9085,144.75,144.71,0.8247433]
[1723611689886,1.72760848,144.74,144.71,0.8247433]
[1723611690075,1.72768142,144.73,144.71,0.8247433]
[1723611690404,14.65318904,144.74,144.71,0.8247433]
[1723611690712,0.12549,144.72,144.71,0.8247433]
[1723611692090,1.85333365,144.72,144.71,0.8247433]
[1723611692374,0.12549,144.72,144.71,0.8247433]
[1723611693205,1.85334043,144.72,144.71,0.8247433]
[1723611694295,0.25098,144.72,144.71,0.8247433]
[1723611694482,45.12549,144.73,144.71,7.7349433]
[1723611694688,0.25098,144.74,144.71,7.7349433]
[1723611695007,52.28497,144.75,144.71,7.7349433]
[1723611695210,0.12549,144.74,144.71,7.7349433]
[1723611695511,0.12549,144.74,144.71,0.8247433]
[1723611696375,7.03449,144.74,144.71,0.8247433]
[1723611696702,0.25098,144.73,144.71,0.8247433]
[1723611697586,0.12549,144.73,144.71,0.8247433]
[1723611698491,0.25098,144.73,144.71,0.8247433]
[1723611700499,52.16048,144.73,144.71,0.8247433]
[1723611700697,1.72783066,144.72,144.71,0.8247433]
[1723611700902,1.85332066,144.72,144.71,0.8247433]
[1723611701417,0.12549,144.72,144.71,0.8247433]
[1723611701616,20.08627,144.72,144.71,0.8247433]
[1723611701793,45.50196,144.72,144.71,0.8247433]
[1723611702200,52.41176,144.72,144.71,0.8247433]
[1723611702696,45.50196,144.72,144.71,0.8247433]
[1723611702886,12.8,144.74,144.71,0.8247433]
[1723611703088,6.9076,144.77,144.72,6.9095]
[1723611703789,6.908,144.76,144.72,6.9095]
[1723611704396,0.12549,144.75,144.72,6.9095]
[1723611705122,8.76141967,144.75,144.71,7.7349433]
[1723611705289,8.88690967,144.75,144.71,7.7349433]
[1723611705690,7.15938,144.75,144.71,7.7349433]
[1723611706509,12.8,144.78,144.71,0.8247433]
[1723611706707,6.9076,144.77,144.72,6.9097]
[1723611707247,1.72732939,144.76,144.72,6.9097]
[1723611707728,0.12549,144.75,144.72,6.9097]
[1723611710008,45.0,144.76,144.73,6.9093]
[1723611710216,0.12549,144.76,144.72,6.9098]
[1723611710408,0.25098,144.76,144.72,6.9098]
[1723611710738,14.10173538,144.8,144.76,6.9076]
[1723611710929,7.7226,144.84,144.74,12.8]
[1723611711249,14.10409627,144.83,144.78,6.9069]
[1723611711417,6.9052,144.82,144.78,6.9069]
[1723611711833,6.9052,144.82,144.77,6.9075]
[1723611712339,0.12549,144.81,144.77,6.9075]
[1723611715024,0.12549,144.82,144.76,6.9079]
[1723611715226,45.50196,144.82,144.76,6.9079]
[1723611715420,0.12549,144.8,144.77,6.9074]
[1723611715635,0.12549,144.8,144.77,13.5007]
[1723611715935,0.12549,144.81,144.77,13.5007]
[1723611717218,0.12549,144.81,144.78,6.9069]
[1723611718434,6.9056,144.81,144.77,13.5007]
[1723611718645,0.12549,144.8,144.77,6.5933]
[1723611719537,0.12549,144.81,144.77,6.5933]
[1723611719729,7.28247,144.81,144.77,6.5933]
[1723611721919,0.12549,144.81,144.78,6.9069]
[1723611722438,0.12549,144.82,144.78,6.9069]
[1723611722639,7.18881008,144.86,144.78,29.28]
[1723611722936,6.9036,144.86,144.81,6.9052]
[1723611724123,6.9037,144.85,144.81,6.9052]
[1723611724324,6.9037,144.85,144.8,6.9059]
[1723611724529,7.02999,144.84,144.79,6.9065]
[1723611724749,8.75636376,144.84,144.79,6.9065]
[1723611725248,0.12549,144.84,144.78,23.3869]
[1723611725429,12.92549,144.82,144.78,16.48]
[1723611725630,7.03159,144.8,144.78,16.48]
[1723611725932,0.12549,144.78,144.75,6.9083]
[1723611726949,0.12549,144.79,144.75,6.9083]
[1723611727536,7.03209,144.79,144.74,22.1491]
[1723611728223,0.12549,144.78,144.74,22.1491]
[1723611728726,7.03249,144.78,144.74,22.1491]
[1723611728927,0.12549,144.77,144.74,22.1491]
[1723611729646,0.12549,144.77,144.74,15.2402]
[1723611729947,8.76024173,144.77,144.74,15.2402]
[1723611730519,8.76024173,144.77,144.72,6.9097]
[1723611730520,0.12549,144.75,144.72,6.9097]
[1723611730719,1.8529076,144.75,144.71,7.7350433]
[1723611730928,0.12549,144.75,144.71,7.7350433]
[1723611732151,45.25098,144.75,144.71,7.7350433]
[1723611732353,52.15948,144.75,144.71,7.7350433]
[1723611732753,45.25098,144.75,144.71,7.7350433]
[1723611733052,0.12549,144.78,144.74,6.9085]
[1723611733225,45.50196,144.78,144.74,6.9085]
[1723611734351,52.40916,144.78,144.73,6.9093]
[1723611734934,52.40916,144.78,144.74,6.9089]
[1723611735131,45.50196,144.78,144.74,6.9089]
[1723611736962,52.40896,144.78,144.74,6.9089]
[1723611739037,19.7064,144.8,144.76,6.9079]
[1723611739243,19.7064,144.8,144.75,6.9083]
[1723611740140,6.9067,144.79,144.74,6.9088]
[1723611740846,0.12549,144.78,144.74,6.9088]
[1723611741153,0.12549,144.76,144.72,6.9094]
[1723611741352,0.12549,144.76,144.73,6.9093]
[1723611741656,0.12549,144.76,144.74,6.9088]
[1723611741855,0.12549,144.77,144.74,6.9088]
[1723611743464,0.12549,144.77,144.75,6.9084]
[1723611743769,6.9057,144.81,144.76,6.9075]
[1723611744775,45.25098,144.8,144.76,6.9075]
[1723611745289,45.25098,144.8,144.75,6.9083]
[1723611745652,0.12549,144.78,144.72,12.8]
[1723611745866,0.12549,144.78,144.71,0.8247433]
[1723611745867,7.03259,144.78,144.71,0.8247433]
[1723611746175,0.12549,144.76,144.71,0.8247433]
[1723611746677,1.85275243,144.76,144.73,6.9093]
[1723611746842,0.12549,144.76,144.73,6.9093]
[1723611751269,6.9071,144.78,144.73,6.9093]
[1723611751478,0.12549,144.77,144.74,6.9085]
[1723611751663,0.25098,144.78,144.74,6.9085]
[1723611752066,0.12549,144.78,144.75,6.9083]
[1723611752802,0.12549,144.78,144.72,1.38173776]
[1723611752803,0.12549,144.79,144.76,6.9078]
[1723611753453,7.03209,144.79,144.74,6.9085]
[1723611753752,0.12549,144.79,144.72,12.8]
[1723611754870,0.12549,144.8,144.73,1.38157624]
[1723611755071,0.12549,144.8,144.74,1.38151825]
[1723611755781,0.12549,144.8,144.76,6.9079]
[1723611758058,0.12549,144.8,144.77,6.9072]
[1723611758250,0.12549,144.81,144.77,6.9072]
[1723611758449,45.50196,144.81,144.77,6.9072]
[1723611758659,52.40756,144.81,144.76,6.9079]
[1723611763684,0.12549,144.79,144.75,6.9083]
[1723611765878,0.12549,144.79,144.76,6.9078]
[1723611766189,0.12549,144.8,144.77,6.9074]
[1723611768492,0.12549,144.8,144.76,6.9078]
[1723611769702,0.25098,144.8,144.75,6.9083]
[1723611769873,0.37647,144.8,144.75,6.9083]
[1723611770996,6.9066,144.79,144.75,6.9083]
[1723611771789,7.28267,144.8,144.75,6.9083]
[1723611774380,6.9066,144.79,144.75,6.9083]
[1723611774583,0.37647,144.8,144.74,6.9088]
[1723611774788,0.12549,144.79,144.74,6.9088]
[1723611775099,0.12549,144.78,144.74,6.9088]
[1723611777398,0.12549,144.78,144.75,6.9082]
[1723611778309,0.12549,144.79,144.72,12.8]
[1723611778598,0.50196,144.8,144.76,6.9078]
[1723611778800,0.12549,144.79,144.76,6.9078]
[1723611779501,0.12549,144.79,144.75,6.9083]
[1723611779803,0.12549,144.79,144.76,6.9078]
[1723611780804,0.12549,144.8,144.74,12.8]
[1723611780984,0.12549,144.8,144.78,6.9067]
[1723611781183,7.03119,144.81,144.77,6.9073]
[1723611781393,0.12549,144.8,144.77,6.9073]
[1723611782107,0.12549,144.8,144.74,12.8]
[1723611783013,0.12549,144.8,144.75,1.38148234]
[1723611783308,0.12549,144.8,144.74,12.8]
[1723611783806,7.19252631,144.84,144.76,12.8]
[1723611784023,26.45268167,144.86,144.81,6.9054]
[1723611784313,6.9038,144.85,144.8,6.9059]
[1723611785293,0.12549,144.84,144.8,6.9059]
[1723611785902,0.12549,144.85,144.75,15.1615]
[1723611786106,0.12549,144.83,144.77,6.9071]
[1723611786299,45.50196,144.83,144.77,6.9071]
[1723611787019,0.12549,144.81,144.77,6.9071]
[1723611787498,1.8522439,144.81,144.77,6.9071]
[1723611787696,7.03119,144.81,144.75,15.1615]
[1723611788910,7.03119,144.81,144.77,6.9074]
[1723611789086,1.72685397,144.8,144.76,6.9078]
[1723611789287,1.72685502,144.79,144.76,6.9078]
[1723611789709,0.12549,144.81,144.78,6.9069]
[1723611789904,0.25098,144.81,144.77,6.9074]
[1723611791313,0.25098,144.81,144.78,6.9068]
[1723611791510,0.12549,144.81,144.78,6.9068]
[1723611791886,8.75785354,144.81,144.77,6.9075]
[1723611792213,8.75785354,144.81,144.75,15.1615]
[1723611792214,8.75785354,144.81,144.76,6.9078]
[1723611792391,0.12549,144.79,144.75,15.1615]
[1723611792589,0.12549,144.79,144.76,6.9079]
[1723611793111,0.12549,144.79,144.71,13.6247433]
[1723611793112,0.12549,144.79,144.72,15.46]
[1723611793319,0.12549,144.79,144.73,20.0]
[1723611794108,0.12549,144.79,144.72,15.46]
[1723611794923,0.12549,144.81,144.73,14.18162591]
[1723611795089,0.12549,144.81,144.78,6.9069]
[1723611795415,6.9047,144.83,144.79,6.9065]
[1723611795617,6.9047,144.83,144.78,6.907]
[1723611796008,26.7784,144.84,144.77,6.9073]
[1723611796009,6.9052,144.82,144.77,6.9073]
[1723611796702,0.12549,144.81,144.77,6.9073]
[1723611797123,6.9052,144.82,144.78,6.9069]
[1723611797431,0.12549,144.82,144.78,6.9069]
[1723611797745,0.12549,144.82,144.76,1.38129206]
[1723611797937,0.12549,144.82,144.8,6.9058]
[1723611798110,6.9033,144.86,144.81,6.9054]
[1723611800313,12.44747821,144.87,144.79,12.8]
[1723611800512,20.17007821,144.88,144.81,12.8]
[1723611800711,19.7021,144.89,144.84,6.9038]
[1723611801031,6.9021,144.89,144.84,6.9038]
[1723611801202,19.346328,144.89,144.84,6.9038]
[1723611801404,6.9021,144.89,144.84,6.9038]
[1723611801900,6.9023,144.88,144.84,6.9038]
[1723611802311,0.12549,144.87,144.84,6.9038]
[1723611802529,0.12549,144.87,144.83,6.9046]
[1723611806853,6.9023,144.88,144.83,6.9046]
[1723611808636,0.12549,144.89,144.81,28.2684]
[1723611808865,6.9017,144.9,144.83,12.8]
[1723611809154,12.8,144.94,144.84,1.38047411]
[1723611809657,6.9007,144.92,144.87,6.9023]
[1723611810354,25.24319776,144.94,144.86,6.9032]
[1723611810355,7.02649,144.91,144.86,6.9032]
[1723611810854,12.8,144.9,144.81,34.3812]
[1723611811029,0.12549,144.89,144.85,6.9036]
[1723611813938,0.12549,144.89,144.86,6.9031]
[1723611814563,0.12549,144.91,144.87,6.9023]
[1723611814767,7.02649,144.91,144.86,6.9031]
[1723611815083,6.9013,144.9,144.86,6.9031]
[1723611815267,0.12549,144.89,144.85,6.9035]
[1723611817066,0.12549,144.89,144.86,6.9031]
[1723611819573,0.12549,144.9,144.86,6.9031]
[1723611822960,6.9002,144.93,144.83,12.8]
[1723611823177,6.9002,144.93,144.88,6.9021]
[1723611823361,6.9003,144.92,144.88,6.9021]
[1723611824060,6.9003,144.92,144.87,6.9026]
[1723611824265,0.12549,144.91,144.88,6.9021]
[1723611824467,6.8998,144.94,144.86,1.3804264]
[1723611824696,6.8998,144.94,144.86,7.6087264]
[1723611824881,6.8998,144.94,144.87,12.8]
[1723611825095,14.1105,144.96,144.88,1.38023199]
[1723611825471,6.899,144.95,144.91,6.9007]
[1723611826169,19.54938167,144.97,144.91,6.9007]
[1723611826367,6.8989,144.95,144.9,6.9011]
[1723611827095,6.8985,144.96,144.91,6.9007]
[1723611827395,0.12549,144.95,144.91,6.9007]
[1723611828107,19.54938167,144.97,144.93,6.8998]
[1723611828108,6.74938167,144.97,144.93,6.8998]
[1723611828396,7.02329,144.98,144.93,6.8998]